[Event "Polofinale MCR junioru 2023"]
[Site "Czech Republic"]
[Date "2023.11.16"]
[Round "7.36"]
[White "Brychta, David"]
[Black "Vlcek, Vojtech"]
[Result "0-1"]
[TimeControl "90 min per 40 moves + 15 min + 30 sec / move from move 1"]
[WhiteFideId "23742798"]
[BlackFideId "23728647"]
[WhiteElo "1230"]
[BlackElo "1703"]

1. c4 {[%clk 01:30:57]} {[%emt 00:00:03]} e5 {[%clk 01:30:25]} {[%emt
00:00:34]} 2. e3 {[%clk 01:31:10]} {[%emt 00:00:17]} Nc6 {[%clk 01:30:02]}
{[%emt 00:00:54]} 3. g3 {[%clk 01:31:22]} {[%emt 00:00:17]} Bc5 {[%clk
01:30:03]} {[%emt 00:00:28]} 4. Bg2 {[%clk 01:31:43]} {[%emt 00:00:09]} d6
{[%clk 01:30:18]} {[%emt 00:00:15]} 5. Ne2 {[%clk 01:32:08]} {[%emt 00:00:06]}
a6 {[%clk 01:30:34]} {[%emt 00:00:13]} 6. O-O {[%clk 01:32:31]} {[%emt
00:00:07]} Nge7 {[%clk 01:30:08]} {[%emt 00:00:55]} 7. Nbc3 {[%clk 01:32:51]}
{[%emt 00:00:10]} Ba7 {[%clk 01:29:57]} {[%emt 00:00:40]} 8. d4 {[%clk
01:30:43]} {[%emt 00:02:39]} O-O {[%clk 01:28:12]} {[%emt 00:02:14]} 9. b3
{[%clk 01:28:14]} {[%emt 00:03:00]} Bg4 {[%clk 01:24:32]} {[%emt 00:04:10]} 10.
Qd2 {[%clk 01:26:49]} {[%emt 00:01:55]} Re8 {[%clk 01:22:22]} {[%emt 00:02:39]}
11. Bb2 {[%clk 01:24:31]} {[%emt 00:02:49]} exd4 {[%clk 01:20:12]} {[%emt
00:02:40]} 12. Nxd4 {[%clk 01:24:23]} {[%emt 00:00:38]} Nxd4 {[%clk 01:20:22]}
{[%emt 00:00:20]} 13. exd4 {[%clk 01:24:48]} {[%emt 00:00:05]} Nc6 {[%emt
00:05:19]} 14. Nd1 {[%emt 00:24:37]} Re2 {[%emt 00:04:41]} 15. Qf4 {[%clk
01:15:56]} {[%emt 00:00:02]} Bh5 {[%clk 00:56:42]} {[%emt 00:00:22]} 16. Bc3
{[%clk 00:59:01]} {[%emt 00:17:25]} g5 {[%clk 00:42:00]} {[%emt 00:15:11]} 17.
Qc1 {[%clk 00:56:27]} {[%emt 00:03:05]} Nxd4 {[%clk 00:36:20]} {[%emt
00:06:10]} 18. Ne3 {[%clk 00:52:29]} {[%emt 00:04:28]} Rc2 {[%clk 00:26:38]}
{[%emt 00:10:10]} 19. Qxc2 {[%clk 00:48:31]} {[%emt 00:04:30]} Nxc2 {[%clk
00:27:02]} {[%emt 00:00:06]} 20. Nxc2 {[%clk 00:48:57]} {[%emt 00:00:04]} c6
{[%clk 00:27:21]} {[%emt 00:00:10]} 21. Bd2 {[%clk 00:48:14]} {[%emt 00:01:14]}
h6 {[%clk 00:25:20]} {[%emt 00:02:31]} 22. Ne3 {[%clk 00:48:27]} {[%emt
00:00:17]} Qf6 {[%clk 00:24:55]} {[%emt 00:00:52]} 23. Rac1 {[%clk 00:48:07]}
{[%emt 00:00:52]} Re8 {[%clk 00:23:30]} {[%emt 00:01:55]} 24. Bc3 {[%clk
00:47:58]} {[%emt 00:00:39]} Bd4 {[%clk 00:23:09]} {[%emt 00:00:51]} 25. Bxd4
{[%clk 00:47:34]} {[%emt 00:00:54]} Qxd4 {[%clk 00:23:33]} {[%emt 00:00:06]} 26.
Nf5 {[%clk 00:47:41]} {[%emt 00:00:23]} Qf6 {[%clk 00:23:50]} {[%emt 00:00:12]}
27. Ne3 {[%clk 00:47:45]} {[%emt 00:00:27]} Bg6 {[%clk 00:23:50]} {[%emt
00:00:30]} 28. Rfd1 {[%clk 00:47:17]} {[%emt 00:00:58]} Be4 {[%clk 00:23:29]}
{[%emt 00:00:49]} 29. Ng4 {[%clk 00:47:10]} {[%emt 00:00:38]} Qg6 {[%clk
00:23:02]} {[%emt 00:00:58]} 30. Re1 {[%clk 00:47:11]} {[%emt 00:00:30]} f5
{[%clk 00:22:32]} {[%emt 00:01:00]} 31. Bxe4 {[%clk 00:46:15]} {[%emt
00:01:26]} Rxe4 {[%clk 00:21:59]} {[%emt 00:01:03]} 32. Rxe4 {[%clk 00:46:18]}
{[%emt 00:00:28]} fxe4 {[%clk 00:22:23]} {[%emt 00:00:05]} 33. Re1 {[%clk
00:46:15]} {[%emt 00:00:33]} Kf7 {[%clk 00:22:20]} {[%emt 00:00:32]} 34. c5
{[%clk 00:45:09]} {[%emt 00:01:36]} h5 {[%clk 00:22:37]} {[%emt 00:00:14]} 35.
cxd6 {[%clk 00:41:39]} {[%emt 00:04:00]} hxg4 {[%clk 00:22:49]} {[%emt
00:00:17]} 36. Rd1 {[%clk 00:42:06]} {[%emt 00:00:04]} Ke8 {[%clk 00:23:07]}
{[%emt 00:00:12]} 37. d7+ {[%clk 00:40:09]} {[%emt 00:02:27]} Kd8 {[%clk
00:23:32]} {[%emt 00:00:05]} 0-1

[Event "Polofinale MCR junioru 2023"]
[Site "Czech Republic"]
[Date "2023.11.16"]
[Round "7.37"]
[White "Meca, Viktor"]
[Black "Pistej, Tomas"]
[Result "1/2-1/2"]
[TimeControl "90 min per 40 moves + 15 min + 30 sec / move from move 1"]
[WhiteFideId "23739800"]
[BlackFideId "23750740"]
[WhiteElo "1642"]
[BlackElo "1502"]

1. e4 {[%clk 01:30:57]} {[%emt 00:00:02]} e5 {[%clk 01:30:55]} {[%emt
00:00:06]} 2. Nf3 {[%clk 01:31:18]} {[%emt 00:00:10]} Nc6 {[%clk 01:31:18]}
{[%emt 00:00:06]} 3. Bb5 {[%clk 01:31:37]} {[%emt 00:00:12]} a6 {[%clk
01:31:40]} {[%emt 00:00:08]} 4. Ba4 {[%clk 01:31:52]} {[%emt 00:00:14]} d6
{[%clk 01:31:59]} {[%emt 00:00:12]} 5. h3 {[%clk 01:31:02]} {[%emt 00:01:20]}
Bd7 {[%clk 01:32:15]} {[%emt 00:00:14]} 6. O-O {[%clk 01:29:05]} {[%emt
00:02:28]} g6 {[%clk 01:32:27]} {[%emt 00:00:17]} 7. Re1 {[%clk 01:25:48]}
{[%emt 00:03:47]} Bg7 {[%clk 01:32:35]} {[%emt 00:00:23]} 8. c3 {[%clk
01:24:20]} {[%emt 00:01:58]} Nf6 {[%clk 01:31:20]} {[%emt 00:01:44]} 9. d4
{[%clk 01:23:12]} {[%emt 00:01:39]} O-O {[%clk 01:30:18]} {[%emt 00:01:32]} 10.
d5 {[%clk 01:15:46]} {[%emt 00:07:56]} Ne7 {[%clk 01:29:50]} {[%emt 00:00:57]}
11. Bxd7 {[%clk 01:15:43]} {[%emt 00:00:34]} Nxd7 {[%clk 01:29:25]} {[%emt
00:00:56]} 12. Bg5 {[%clk 01:11:54]} {[%emt 00:04:18]} h6 {[%clk 01:28:35]}
{[%emt 00:01:20]} 13. Bxe7 {[%clk 01:11:31]} {[%emt 00:00:54]} Qxe7 {[%clk
01:28:53]} {[%emt 00:00:11]} 14. Nbd2 {[%clk 01:07:45]} {[%emt 00:04:16]} f5
{[%clk 01:26:38]} {[%emt 00:02:45]} 15. exf5 {[%clk 00:57:40]} {[%emt
00:10:36]} gxf5 {[%clk 01:24:47]} {[%emt 00:02:20]} 16. Nd4 {[%clk 00:57:39]}
{[%emt 00:00:31]} Rf6 {[%clk 01:16:10]} {[%emt 00:09:06]} 17. Qc2 {[%clk
00:51:46]} {[%emt 00:06:24]} Qf7 {[%clk 01:12:05]} {[%emt 00:04:34]} 18. Ne6
{[%clk 00:49:33]} {[%emt 00:02:44]} Nf8 {[%clk 01:12:00]} {[%emt 00:00:35]} 19.
Nxf8 {[%clk 00:41:14]} {[%emt 00:08:49]} Rxf8 {[%clk 01:12:06]} {[%emt
00:00:24]} 20. c4 {[%clk 00:41:30]} {[%emt 00:00:15]} Qh5 {[%clk 01:06:05]}
{[%emt 00:06:30]} 21. Qd1 {[%clk 00:34:15]} {[%emt 00:07:45]} Qh4 {[%clk
00:58:07]} {[%emt 00:08:27]} 22. Rc1 {[%clk 00:25:59]} {[%emt 00:08:48]} Rg6
{[%clk 00:54:23]} {[%emt 00:04:14]} 23. Rc3 {[%clk 00:26:13]} {[%emt 00:00:16]}
e4 {[%clk 00:50:51]} {[%emt 00:04:00]} 24. Rb3 {[%clk 00:21:30]} {[%emt
00:05:14]} Be5 {[%clk 00:36:41]} {[%emt 00:14:39]} 25. Re2 {[%clk 00:15:44]}
{[%emt 00:06:17]} Kh8 {[%clk 00:30:50]} {[%emt 00:06:19]} 26. Kh1 {[%clk
00:14:17]} {[%emt 00:01:59]} Rfg8 {[%clk 00:27:21]} {[%emt 00:03:58]} 27. Qf1
{[%clk 00:13:31]} {[%emt 00:01:16]} Qg5 {[%clk 00:21:53]} {[%emt 00:05:58]} 28.
g3 {[%clk 00:10:49]} {[%emt 00:03:13]} h5 {[%clk 00:17:30]} {[%emt 00:04:53]}
29. f4 {[%clk 00:09:14]} {[%emt 00:02:06]} exf3 {[%clk 00:15:43]} {[%emt
00:02:16]} 30. Nxf3 {[%clk 00:08:35]} {[%emt 00:01:08]} Qxg3 {[%clk 00:14:53]}
{[%emt 00:01:19]} 31. Nxe5 {[%clk 00:07:21]} {[%emt 00:01:44]} Qg1+ {[%clk
00:14:56]} {[%emt 00:00:27]} 32. Qxg1 {[%clk 00:07:44]} {[%emt 00:00:08]} Rxg1+
{[%clk 00:15:20]} {[%emt 00:00:05]} 33. Kh2 {[%clk 00:08:07]} {[%emt 00:00:05]}
dxe5 {[%clk 00:15:36]} {[%emt 00:00:16]} 34. c5 {[%clk 00:07:23]} {[%emt
00:01:15]} e4 {[%clk 00:12:49]} {[%emt 00:03:16]} 35. Rxb7 {[%clk 00:04:58]}
{[%emt 00:02:55]} f4 {[%clk 00:10:00]} {[%emt 00:03:19]} 36. Rb8 {[%clk
00:03:21]} {[%emt 00:02:07]} e3 {[%clk 00:06:07]} {[%emt 00:04:22]} 37. Rxg8+
{[%clk 00:00:57]} {[%emt 00:02:55]} Rxg8 {[%clk 00:06:27]} {[%emt 00:00:11]} 38.
d6 {[%clk 00:01:07]} {[%emt 00:00:20]} cxd6 {[%clk 00:06:24]} {[%emt 00:00:33]}
39. cxd6 {[%clk 00:01:15]} {[%emt 00:00:22]} Rg7 {[%clk 00:04:42]} {[%emt
00:02:11]} 40. a3 {[%clk 00:00:47]} {[%emt 00:00:59]} Kg8 {[%clk 00:03:46]}
{[%emt 00:01:25]} 41. b4 {[%emt 00:00:47]} Kf8 {[%clk 00:02:19]} {[%emt
00:01:56]} 42. Rc2 {[%clk 00:00:37]} {[%emt 00:00:24]} Rd7 {[%clk 00:00:51]}
{[%emt 00:01:57]} 43. Rc4 {[%clk 00:00:39]} {[%emt 00:00:29]} Rxd6 {[%clk
00:03:00]} {[%emt 00:13:51]} 44. Rxf4+ {[%clk 00:16:53]} {[%emt 00:00:17]} Ke7
{[%clk 00:03:17]} {[%emt 00:00:12]} 45. Re4+ {[%clk 00:11:36]} {[%emt
00:05:48]} Re6 {[%clk 00:03:37]} {[%emt 00:00:10]} 46. Rxe6+ {[%clk 00:12:01]}
{[%emt 00:00:05]} Kxe6 {[%clk 00:04:02]} {[%emt 00:00:04]} 47. Kg2 {[%clk
00:11:39]} {[%emt 00:00:52]} Ke5 {[%clk 00:03:40]} {[%emt 00:00:52]} 48. Kf3
{[%clk 00:08:37]} {[%emt 00:03:31]} Kd4 {[%clk 00:03:57]} {[%emt 00:00:14]} 49.
Ke2 {[%clk 00:08:55]} {[%emt 00:00:12]} h4 {[%clk 00:03:43]} {[%emt 00:00:44]}
50. a4 {[%clk 00:08:00]} {[%emt 00:01:26]} Kc4 {[%clk 00:03:32]} {[%emt
00:00:41]} 51. b5 {[%clk 00:08:16]} {[%emt 00:00:14]} axb5 {[%clk 00:03:43]}
{[%emt 00:00:19]} 52. axb5 {[%emt 00:00:46]} Kxb5 {[%emt 00:00:03]} 53. Kxe3
{[%emt 00:00:03]} Kc6 {[%emt 00:00:02]} 54. Kf4 Kd7 55. Kg4 Ke7 56. Kxh4 {[%emt
00:00:01]} Kf7 57. Kg5 Kg7 1/2-1/2

[Event "Polofinale MCR junioru 2023"]
[Site "Czech Republic"]
[Date "2023.11.16"]
[Round "7.38"]
[White "Sklar, Petr"]
[Black "Rucabado, Stefan"]
[Result "0-1"]
[TimeControl "90 min per 40 moves + 15 min + 30 sec / move from move 1"]
[WhiteFideId "23731141"]
[BlackFideId "23730315"]
[WhiteElo "1160"]
[BlackElo "1873"]

1. d4 {[%clk 01:30:55]} {[%emt 00:00:04]} d5 {[%clk 01:29:29]} {[%emt
00:01:31]} 2. Bf4 {[%clk 01:31:16]} {[%emt 00:00:09]} c5 {[%clk 01:29:54]}
{[%emt 00:00:05]} 3. e3 {[%clk 01:30:58]} {[%emt 00:00:48]} cxd4 {[%clk
01:30:19]} {[%emt 00:00:06]} 4. Qxd4 {[%clk 01:30:04]} {[%emt 00:01:24]} Nc6
{[%clk 01:30:39]} {[%emt 00:00:09]} 5. Bb5 {[%clk 01:21:26]} {[%emt 00:09:09]}
Nf6 {[%clk 01:28:56]} {[%emt 00:02:13]} 6. Nc3 {[%clk 01:14:42]} {[%emt
00:07:15]} Bd7 {[%clk 01:27:49]} {[%emt 00:01:36]} 7. Bxc6 {[%clk 01:10:28]}
{[%emt 00:04:44]} Bxc6 {[%clk 01:28:10]} {[%emt 00:00:09]} 8. h3 {[%clk
01:06:43]} {[%emt 00:04:15]} e6 {[%clk 01:28:10]} {[%emt 00:00:30]} 9. Nf3
{[%clk 01:05:34]} {[%emt 00:01:39]} Qb6 {[%clk 01:27:44]} {[%emt 00:00:56]} 10.
Qxb6 {[%clk 01:01:03]} {[%emt 00:05:02]} axb6 {[%clk 01:28:08]} {[%emt
00:00:06]} 11. O-O {[%clk 01:01:02]} {[%emt 00:00:30]} Be7 {[%clk 01:26:47]}
{[%emt 00:01:51]} 12. Nd4 {[%clk 00:58:53]} {[%emt 00:02:38]} O-O {[%clk
01:27:03]} {[%emt 00:00:14]} 13. Rfd1 {[%clk 00:56:33]} {[%emt 00:02:51]} Rfc8
{[%clk 01:26:28]} {[%emt 00:01:04]} 14. a3 {[%clk 00:53:55]} {[%emt 00:03:09]}
Nd7 {[%clk 01:24:34]} {[%emt 00:02:23]} 15. Bg3 {[%clk 00:42:43]} {[%emt
00:11:41]} Nc5 {[%clk 01:22:54]} {[%emt 00:02:10]} 16. Ncb5 {[%clk 00:33:10]}
{[%emt 00:10:03]} Ne4 {[%clk 01:20:06]} {[%emt 00:03:18]} 17. Rac1 {[%clk
00:23:47]} {[%emt 00:09:54]} Nxg3 {[%clk 01:17:58]} {[%emt 00:02:39]} 18. fxg3
{[%clk 00:24:01]} {[%emt 00:00:15]} Bc5 {[%clk 01:12:24]} {[%emt 00:06:04]} 19.
Kf2 {[%clk 00:23:21]} {[%emt 00:01:09]} e5 {[%clk 01:10:42]} {[%emt 00:02:13]}
20. Nxc6 {[%clk 00:22:40]} {[%emt 00:01:11]} bxc6 {[%clk 01:11:10]} {[%emt
00:00:02]} 21. Nc3 {[%clk 00:22:28]} {[%emt 00:00:41]} b5 {[%clk 01:10:50]}
{[%emt 00:00:50]} 22. Na2 {[%clk 00:21:10]} {[%emt 00:01:48]} f5 {[%clk
01:04:41]} {[%emt 00:06:39]} 23. Kf3 {[%clk 00:20:42]} {[%emt 00:00:58]} g5
{[%clk 01:03:22]} {[%emt 00:01:48]} 24. c3 {[%clk 00:19:44]} {[%emt 00:01:28]}
Kf7 {[%clk 00:58:34]} {[%emt 00:05:18]} 0-1

[Event "Polofinale MCR junioru 2023"]
[Site "Czech Republic"]
[Date "2023.11.16"]
[Round "7.39"]
[White "Vasinek, Martin"]
[Black "Striz, Tadeas"]
[Result "1-0"]
[TimeControl "90 min per 40 moves + 15 min + 30 sec / move from move 1"]
[WhiteFideId "392200"]
[BlackFideId "23723530"]
[WhiteElo "1987"]
[BlackElo "1371"]

1. d4 {[%clk 01:30:58]} {[%emt 00:00:01]} Nf6 {[%clk 01:30:56]} {[%emt
00:00:05]} 2. c4 {[%clk 01:31:17]} {[%emt 00:00:11]} e6 {[%clk 01:31:18]}
{[%emt 00:00:07]} 3. Nf3 {[%clk 01:31:28]} {[%emt 00:00:20]} b6 {[%clk
01:31:43]} {[%emt 00:00:06]} 4. e3 {[%clk 01:31:03]} {[%emt 00:00:54]} Bb7
{[%clk 01:31:58]} {[%emt 00:00:14]} 5. Bd3 {[%clk 01:31:19]} {[%emt 00:00:13]}
d5 {[%clk 01:31:48]} {[%emt 00:00:41]} 6. O-O {[%clk 01:31:07]} {[%emt
00:00:42]} Nbd7 {[%clk 01:31:58]} {[%emt 00:00:20]} 7. b3 {[%clk 01:30:49]}
{[%emt 00:00:49]} Be7 {[%clk 01:32:05]} {[%emt 00:00:24]} 8. Bb2 {[%clk
01:30:58]} {[%emt 00:00:21]} c5 {[%clk 01:32:27]} {[%emt 00:00:07]} 9. Qe2
{[%clk 01:30:40]} {[%emt 00:00:48]} Rc8 {[%clk 01:30:59]} {[%emt 00:01:58]} 10.
Nc3 {[%clk 01:30:52]} {[%emt 00:00:18]} O-O {[%clk 01:30:45]} {[%emt 00:00:43]}
11. Rfd1 {[%clk 01:30:38]} {[%emt 00:00:44]} Ne4 {[%clk 01:21:30]} {[%emt
00:09:45]} 12. Rac1 {[%clk 01:27:34]} {[%emt 00:03:35]} cxd4 {[%clk 01:09:21]}
{[%emt 00:12:39]} 13. Nxd4 {[%clk 01:22:58]} {[%emt 00:05:06]} Nxc3 {[%clk
01:03:14]} {[%emt 00:06:37]} 14. Bxc3 {[%clk 01:21:15]} {[%emt 00:02:14]} Nc5
{[%clk 00:59:52]} {[%emt 00:03:52]} 15. Bb1 {[%clk 01:19:49]} {[%emt 00:01:57]}
Qc7 {[%clk 00:53:56]} {[%emt 00:06:25]} 16. Qh5 {[%clk 01:11:43]} {[%emt
00:08:35]} g6 {[%clk 00:51:47]} {[%emt 00:02:40]} 17. Qh6 {[%clk 01:10:48]}
{[%emt 00:01:25]} e5 {[%clk 00:46:36]} {[%emt 00:05:42]} 18. Nb5 {[%clk
01:08:16]} {[%emt 00:03:02]} Qb8 {[%clk 00:46:58]} {[%emt 00:00:08]} 19. cxd5
{[%clk 01:07:54]} {[%emt 00:00:53]} a6 {[%clk 00:46:20]} {[%emt 00:01:08]} 20.
d6 {[%clk 00:57:41]} {[%emt 00:10:43]} Bf6 {[%clk 00:42:48]} {[%emt 00:04:02]}
21. Nc7 {[%clk 00:48:57]} {[%emt 00:09:13]} Rfd8 {[%clk 00:40:41]} {[%emt
00:02:35]} 22. Bb4 {[%clk 00:45:22]} {[%emt 00:04:07]} Ne4 {[%clk 00:38:24]}
{[%emt 00:02:46]} 23. Nxa6 {[%clk 00:36:54]} {[%emt 00:08:59]} Rxc1 {[%clk
00:31:31]} {[%emt 00:07:23]} 24. Rxc1 {[%clk 00:36:41]} {[%emt 00:00:43]} Qa7
{[%clk 00:31:59]} {[%emt 00:00:01]} 25. Nc7 {[%clk 00:35:32]} {[%emt 00:01:39]}
Nxd6 {[%clk 00:25:37]} {[%emt 00:06:52]} 26. Bxd6 {[%clk 00:35:46]} {[%emt
00:00:16]} Qa5 {[%clk 00:26:03]} {[%emt 00:00:04]} 27. e4 {[%clk 00:26:48]}
{[%emt 00:09:28]} Rxd6 {[%clk 00:23:39]} {[%emt 00:02:54]} 28. Ne8 {[%clk
00:27:00]} {[%emt 00:00:18]} Re6 {[%clk 00:24:07]} {[%emt 00:00:01]} 29. Nxf6+
{[%clk 00:26:54]} {[%emt 00:00:35]} Rxf6 {[%clk 00:24:35]} {[%emt 00:00:01]} 30.
Rd1 {[%clk 00:27:04]} {[%emt 00:00:21]} Rd6 {[%clk 00:24:38]} {[%emt 00:00:28]}
31. Qc1 {[%clk 00:25:45]} {[%emt 00:01:49]} Qc3 {[%clk 00:22:30]} {[%emt
00:02:38]} 32. h3 {[%clk 00:26:02]} {[%emt 00:00:13]} Qb4 {[%clk 00:20:16]}
{[%emt 00:02:43]} 33. Rxd6 {[%clk 00:25:43]} {[%emt 00:00:50]} Qxd6 {[%clk
00:20:45]} 34. Qc2 {[%clk 00:26:11]} {[%emt 00:00:02]} Kg7 {[%clk 00:20:43]}
{[%emt 00:00:31]} 35. Qd3 {[%clk 00:26:17]} {[%emt 00:00:24]} Qc5 {[%clk
00:20:39]} {[%emt 00:00:36]} 36. Qc4 {[%clk 00:25:09]} {[%emt 00:01:35]} Qd6
{[%clk 00:19:12]} {[%emt 00:02:00]} 37. Bd3 {[%clk 00:25:05]} {[%emt 00:00:33]}
g5 {[%clk 00:18:23]} {[%emt 00:01:20]} 38. a4 {[%clk 00:24:59]} {[%emt
00:00:37]} Kf6 {[%clk 00:15:48]} {[%emt 00:03:04]} 39. b4 {[%clk 00:24:12]}
{[%emt 00:01:18]} Ke7 {[%clk 00:14:59]} {[%emt 00:01:19]} 40. a5 {[%clk
00:23:47]} {[%emt 00:00:55]} 1-0

[Event "Polofinale MCR junioru 2023"]
[Site "Czech Republic"]
[Date "2023.11.17"]
[Round "8.3"]
[White "Skypala, Ondrej"]
[Black "Hak, David"]
[Result "1/2-1/2"]
[TimeControl "90 min per 40 moves + 15 min + 30 sec / move from move 1"]
[WhiteFideId "366285"]
[BlackFideId "377007"]
[WhiteElo "2159"]
[BlackElo "2253"]

1. c4 {[%clk 01:30:58]} {[%emt 00:00:01]} c5 {[%clk 01:26:56]} {[%emt
00:04:05]} 2. g3 {[%clk 01:31:18]} {[%emt 00:00:10]} g6 {[%clk 01:27:20]}
{[%emt 00:00:06]} 3. Bg2 {[%clk 01:31:43]} {[%emt 00:00:04]} Bg7 {[%clk
01:27:36]} {[%emt 00:00:14]} 4. Nf3 {[%clk 01:32:08]} {[%emt 00:00:05]} e5
{[%clk 01:27:48]} {[%emt 00:00:19]} 5. Nc3 {[%clk 01:32:30]} {[%emt 00:00:07]}
Ne7 {[%clk 01:28:03]} {[%emt 00:00:15]} 6. a3 {[%clk 01:32:46]} {[%emt
00:00:15]} Nbc6 {[%clk 01:27:55]} {[%emt 00:00:37]} 7. b4 {[%clk 01:31:14]}
{[%emt 00:02:02]} cxb4 {[%clk 01:21:30]} {[%emt 00:06:56]} 8. axb4 {[%clk
01:31:39]} {[%emt 00:00:05]} Nxb4 {[%clk 01:20:22]} {[%emt 00:01:38]} 9. Ba3
{[%clk 01:32:04]} {[%emt 00:00:05]} Nec6 {[%clk 01:15:15]} {[%emt 00:05:36]} 10.
Qa4 {[%clk 01:30:53]} {[%emt 00:01:42]} a5 {[%clk 01:13:46]} {[%emt 00:01:58]}
11. O-O {[%clk 01:22:50]} {[%emt 00:08:33]} O-O {[%clk 01:13:17]} {[%emt
00:01:00]} 12. Rab1 {[%clk 01:20:16]} {[%emt 00:03:04]} Ra6 {[%clk 01:02:52]}
{[%emt 00:10:55]} 13. d3 {[%clk 01:15:00]} {[%emt 00:05:45]} d6 {[%clk
01:01:38]} {[%emt 00:01:44]} 14. Nb5 {[%clk 01:14:15]} {[%emt 00:01:15]} Be6
{[%clk 00:57:52]} {[%emt 00:04:16]} 15. Nd2 {[%clk 01:14:25]} {[%emt 00:00:20]}
Qd7 {[%clk 00:46:39]} {[%emt 00:11:43]} 16. Ne4 {[%clk 01:10:36]} {[%emt
00:04:19]} Nd4 {[%clk 00:34:36]} {[%emt 00:12:33]} 17. Bxb4 {[%clk 00:57:40]}
{[%emt 00:13:26]} axb4 {[%clk 00:34:57]} {[%emt 00:00:09]} 18. Qxb4 {[%clk
00:58:04]} {[%emt 00:00:06]} Nxe2+ {[%clk 00:32:43]} {[%emt 00:02:45]} 19. Kh1
{[%clk 00:56:46]} {[%emt 00:01:48]} Bh3 {[%clk 00:29:51]} {[%emt 00:03:23]} 20.
Bxh3 {[%clk 00:53:08]} {[%emt 00:04:06]} Qxh3 {[%clk 00:30:14]} {[%emt
00:00:08]} 21. Qb2 {[%clk 00:48:55]} {[%emt 00:04:43]} Nf4 {[%clk 00:16:38]}
{[%emt 00:14:06]} 22. f3 {[%clk 00:47:35]} {[%emt 00:01:50]} Nxd3 {[%clk
00:14:33]} {[%emt 00:02:36]} 23. Qe2 {[%clk 00:47:26]} {[%emt 00:00:38]} Nc5
{[%clk 00:10:20]} {[%emt 00:04:43]} 24. Nbxd6 {[%clk 00:47:33]} {[%emt
00:00:23]} Nxe4 {[%clk 00:08:38]} {[%emt 00:02:12]} 25. Nxe4 {[%clk 00:47:51]}
{[%emt 00:00:11]} Rfa8 {[%clk 00:08:22]} {[%emt 00:00:47]} 26. Rfd1 {[%clk
00:46:19]} {[%emt 00:02:02]} Ra2 {[%clk 00:06:44]} {[%emt 00:02:08]} 27. Rd2
{[%clk 00:46:01]} {[%emt 00:00:48]} Ra1 {[%clk 00:06:27]} {[%emt 00:00:47]} 28.
Qd1 {[%clk 00:42:18]} {[%emt 00:04:13]} Rxb1 {[%clk 00:03:14]} {[%emt
00:03:43]} 29. Qxb1 {[%clk 00:42:42]} {[%emt 00:00:06]} Bh6 {[%clk 00:02:23]}
{[%emt 00:01:21]} 30. Re2 {[%clk 00:40:47]} {[%emt 00:02:24]} Ra3 {[%clk
00:01:33]} {[%emt 00:01:21]} 31. f4 {[%clk 00:39:19]} {[%emt 00:01:58]} Qe6
{[%clk 00:00:51]} {[%emt 00:01:12]} 32. Qb2 {[%clk 00:36:57]} {[%emt 00:02:52]}
Qxc4 {[%clk 00:00:50]} {[%emt 00:00:31]} 33. Nf6+ {[%clk 00:36:32]} {[%emt
00:00:55]} Kg7 {[%clk 00:00:41]} {[%emt 00:00:39]} 34. Qxe5 {[%clk 00:36:38]}
{[%emt 00:00:23]} Qc1+ {[%clk 00:00:40]} {[%emt 00:00:32]} 35. Kg2 {[%clk
00:36:10]} {[%emt 00:00:58]} Qc3 {[%clk 00:00:47]} {[%emt 00:00:23]} 36. Nh5+
{[%clk 00:36:16]} {[%emt 00:00:24]} Kg8 {[%clk 00:01:16]} 37. Nf6+ {[%emt
00:03:06]} 1/2-1/2

[Event "Polofinale MCR junioru 2023"]
[Site "Czech Republic"]
[Date "2023.11.17"]
[Round "8.4"]
[White "Lihotsky, Lukas"]
[Black "Bokhnak, Timofey"]
[Result "1/2-1/2"]
[TimeControl "90 min per 40 moves + 15 min + 30 sec / move from move 1"]
[WhiteFideId "23727004"]
[BlackFideId "14172976"]
[WhiteElo "2100"]
[BlackElo "2210"]

1. d4 {[%clk 01:30:58]} {[%emt 00:00:01]} d5 {[%clk 01:30:53]} {[%emt
00:00:07]} 2. c4 {[%clk 01:31:23]} {[%emt 00:00:05]} e6 {[%clk 01:31:19]}
{[%emt 00:00:04]} 3. Nc3 {[%clk 01:31:49]} {[%emt 00:00:04]} Nf6 {[%clk
01:31:43]} {[%emt 00:00:06]} 4. Nf3 {[%clk 01:32:09]} {[%emt 00:00:09]} Be7
{[%clk 01:31:08]} {[%emt 00:01:05]} 5. Bg5 {[%clk 01:32:32]} {[%emt 00:00:07]}
O-O {[%clk 01:29:29]} {[%emt 00:02:10]} 6. e3 {[%clk 01:32:53]} {[%emt
00:00:09]} h6 {[%clk 01:28:53]} {[%emt 00:01:05]} 7. Bh4 {[%clk 01:33:18]}
{[%emt 00:00:06]} b6 {[%clk 01:27:38]} {[%emt 00:01:46]} 8. cxd5 {[%clk
01:33:31]} {[%emt 00:00:16]} Nxd5 {[%clk 01:27:32]} {[%emt 00:00:36]} 9. Bxe7
{[%clk 01:33:50]} {[%emt 00:00:11]} Qxe7 {[%clk 01:27:56]} {[%emt 00:00:06]} 10.
Nxd5 {[%clk 01:34:13]} {[%emt 00:00:07]} exd5 {[%clk 01:28:21]} {[%emt
00:00:05]} 11. Rc1 {[%clk 01:34:26]} {[%emt 00:00:17]} Be6 {[%clk 01:24:16]}
{[%emt 00:04:35]} 12. Qa4 {[%clk 01:34:30]} {[%emt 00:00:25]} c5 {[%clk
01:19:32]} {[%emt 00:05:15]} 13. Qa3 {[%clk 01:34:51]} {[%emt 00:00:09]} Rc8
{[%clk 01:14:25]} {[%emt 00:05:36]} 14. Be2 {[%clk 01:35:11]} {[%emt 00:00:11]}
Nd7 {[%clk 01:05:11]} {[%emt 00:09:43]} 15. O-O {[%clk 01:35:11]} {[%emt
00:00:31]} Qf8 {[%clk 01:00:19]} {[%emt 00:05:21]} 16. dxc5 {[%clk 01:32:58]}
{[%emt 00:02:44]} bxc5 {[%clk 01:00:30]} {[%emt 00:00:20]} 17. Rfd1 {[%clk
01:23:55]} {[%emt 00:09:31]} Rcb8 {[%clk 00:50:49]} {[%emt 00:10:11]} 18. Qc3
{[%clk 00:56:59]} {[%emt 00:27:26]} Qd6 {[%clk 00:48:25]} {[%emt 00:02:54]} 19.
e4 {[%clk 00:51:58]} {[%emt 00:05:32]} d4 {[%clk 00:47:27]} {[%emt 00:01:28]}
20. Qa3 {[%clk 00:52:05]} {[%emt 00:00:22]} Qf4 {[%clk 00:41:07]} {[%emt
00:06:51]} 21. Nd2 {[%clk 00:49:11]} {[%emt 00:03:24]} Qe5 {[%clk 00:35:48]}
{[%emt 00:05:50]} 22. Bc4 {[%clk 00:33:53]} {[%emt 00:15:46]} Rc8 {[%clk
00:29:35]} {[%emt 00:06:45]} 23. f3 {[%clk 00:32:25]} {[%emt 00:01:58]} Rab8
{[%clk 00:21:32]} {[%emt 00:08:33]} 24. Bxe6 {[%clk 00:25:39]} {[%emt
00:07:16]} Qxe6 {[%clk 00:21:24]} {[%emt 00:00:38]} 25. Nc4 {[%clk 00:25:11]}
{[%emt 00:00:58]} a5 {[%clk 00:15:32]} {[%emt 00:06:23]} 1/2-1/2